[Event "Titled Tuesday Blitz February 28 Early 2023"]
[White "Hertlein, Irena"]
[Black "Vaglio Munoz, Jaime"]
[WhiteFideId "21817618"]
[BlackFideId "6500145"]
[WhiteElo "1776"]
[BlackElo "2199"]
[Result "1-0"]
[Round "08"]
[TimeControl "180+2"]
[Date "2023.02.28"]
[WhiteClock "0:00:06"]
[BlackClock "0:00:31"]

1. d4 {[%clk 0:03:00]}  c6 {[%clk 0:02:50]} 2. Nc3 {[%clk 0:03:00]}  a6 {[%clk 0:02:48]} 3. e4 {[%clk 0:02:58]}  b5 {[%clk 0:02:49]} 4. f4 {[%clk 0:02:57]}  d5 {[%clk 0:02:48]} 5. e5 {[%clk 0:02:53]}  h5 {[%clk 0:02:47]} 6. Bd3 {[%clk 0:02:46]}  g6 {[%clk 0:02:47]} 7. Nf3 {[%clk 0:02:45]}  Bg4 {[%clk 0:02:46]} 8. h3 {[%clk 0:02:44]}  Bxf3 {[%clk 0:02:46]} 9. Qxf3 {[%clk 0:02:44]}  e6 {[%clk 0:02:46]} 10. Bd2 {[%clk 0:02:42]}  h4 {[%clk 0:02:45]} 11. O-O-O {[%clk 0:02:30]}  Qb6 {[%clk 0:02:45]} 12. Ne2 {[%clk 0:02:28]}  a5 {[%clk 0:02:44]} 13. g4 {[%clk 0:02:13]}  hxg3 {[%clk 0:02:43]} 14. Nxg3 {[%clk 0:02:11]}  c5 {[%clk 0:02:35]} 15. dxc5 {[%clk 0:02:01]}  Bxc5 {[%clk 0:02:36]} 16. f5 {[%clk 0:02:01]}  gxf5 {[%clk 0:02:35]} 17. Bxf5 {[%clk 0:02:00]}  exf5 {[%clk 0:02:34]} 18. Nxf5 {[%clk 0:02:00]}  Ne7 {[%clk 0:01:54]} 19. Ng7+ {[%clk 0:01:28]}  Kd8 {[%clk 0:01:35]} 20. Qxf7 {[%clk 0:01:26]}  Qg6 {[%clk 0:01:31]} 21. Ne6+ {[%clk 0:01:23]}  Kc8 {[%clk 0:01:29]} 22. Qxg6 {[%clk 0:01:03]}  Nxg6 {[%clk 0:01:30]} 23. Nxc5 {[%clk 0:01:03]}  Nxe5 {[%clk 0:01:28]} 24. h4 {[%clk 0:01:00]}  Nbc6 {[%clk 0:01:27]} 25. Rdf1 {[%clk 0:00:55]}  Ra7 {[%clk 0:01:24]} 26. h5 {[%clk 0:00:51]}  Nd4 {[%clk 0:01:12]} 27. Bc3 {[%clk 0:00:45]}  Ndc6 {[%clk 0:01:09]} 28. Rf6 {[%clk 0:00:34]}  Rah7 {[%clk 0:01:05]} 29. Rxc6+ {[%clk 0:00:24]}  Nxc6 {[%clk 0:01:04]} 30. Bxh8 {[%clk 0:00:24]}  Rxh8 {[%clk 0:01:04]} 31. h6 {[%clk 0:00:23]}  Rh7 {[%clk 0:01:04]} 32. Ne6 {[%clk 0:00:21]}  Ne5 {[%clk 0:00:59]} 33. Ng5 {[%clk 0:00:20]}  Rh8 {[%clk 0:00:58]} 34. h7 {[%clk 0:00:19]}  Kd7 {[%clk 0:00:58]} 35. Kd2 {[%clk 0:00:20]}  Ng6 {[%clk 0:00:55]} 36. Ke3 {[%clk 0:00:19]}  Ke7 {[%clk 0:00:53]} 37. Kd4 {[%clk 0:00:19]}  Kf6 {[%clk 0:00:53]} 38. Nf3 {[%clk 0:00:16]}  Nf4 {[%clk 0:00:52]} 39. Kc5 {[%clk 0:00:16]}  Rc8+ {[%clk 0:00:51]} 40. Kxb5 {[%clk 0:00:15]}  Ng6 {[%clk 0:00:50]} 41. Kxa5 {[%clk 0:00:13]}  Nh8 {[%clk 0:00:49]} 42. c3 {[%clk 0:00:12]}  Kf5 {[%clk 0:00:48]} 43. Nd4+ {[%clk 0:00:12]}  Ke4 {[%clk 0:00:48]} 44. Re1+ {[%clk 0:00:12]}  Kd3 {[%clk 0:00:48]} 45. Rd1+ {[%clk 0:00:11]}  Ke3 {[%clk 0:00:47]} 46. Re1+ {[%clk 0:00:11]}  Kd2 {[%clk 0:00:47]} 47. Re7 {[%clk 0:00:11]}  Kc1 {[%clk 0:00:44]} 48. Rg7 {[%clk 0:00:11]}  Ra8+ {[%clk 0:00:35]} 49. Kb4 {[%clk 0:00:09]}  Ra6 {[%clk 0:00:34]} 50. Rg8 {[%clk 0:00:09]}  Nf7 {[%clk 0:00:33]} 51. h8=Q {[%clk 0:00:08]}  Nxh8 {[%clk 0:00:33]} 52. Rxh8 {[%clk 0:00:08]}  Kxb2 {[%clk 0:00:34]} 53. a4 {[%clk 0:00:07]}  Ra7 {[%clk 0:00:30]} 54. Nb5 {[%clk 0:00:07]}  Rg7 {[%clk 0:00:28]} 55. Rd8 {[%clk 0:00:07]}  Rg4+ {[%clk 0:00:28]} 56. Nd4 {[%clk 0:00:07]}  Rg5 {[%clk 0:00:25]} 57. a5 {[%clk 0:00:06]}  Rg6 {[%clk 0:00:24]} 58. Rxd5 {[%clk 0:00:05]}  Rg8 {[%clk 0:00:24]} 59. a6 {[%clk 0:00:05]}  Ra8 {[%clk 0:00:23]} 60. Ra5 {[%clk 0:00:05]}  Ra7 {[%clk 0:00:22]} 61. Nc6 {[%clk 0:00:04]}  Ra8 {[%clk 0:00:22]} 62. a7 {[%clk 0:00:05]}  Kc2 {[%clk 0:00:22]} 63. Rb5 {[%clk 0:00:05]}  Kd3 {[%clk 0:00:22]} 64. Rb8 {[%clk 0:00:03]}  Rxa7 {[%clk 0:00:22]} 65. Nxa7 {[%clk 0:00:03]}  Ke4 {[%clk 0:00:23]} 66. Rd8 {[%clk 0:00:02]}  Ke5 {[%clk 0:00:23]} 67. c4 {[%clk 0:00:03]}  Ke6 {[%clk 0:00:24]} 68. Rd1 {[%clk 0:00:02]}  Ke7 {[%clk 0:00:25]} 69. c5 {[%clk 0:00:03]}  Ke6 {[%clk 0:00:26]} 70. c6 {[%clk 0:00:03]}  Ke5 {[%clk 0:00:27]} 71. c7 {[%clk 0:00:04]}  Ke4 {[%clk 0:00:28]} 72. c8=Q {[%clk 0:00:05]}  Ke5 {[%clk 0:00:28]} 73. Qc3+ {[%clk 0:00:04]}  Ke4 {[%clk 0:00:29]} 74. Qe1+ {[%clk 0:00:05]}  Kf3 {[%clk 0:00:29]} 75. Rd2 {[%clk 0:00:05]}  Kf4 {[%clk 0:00:29]} 76. Rf2+ {[%clk 0:00:05]}  Kg5 {[%clk 0:00:30]} 77. Qg1+ {[%clk 0:00:06]}  Kh6 {[%clk 0:00:31]} 78. Rh2# {[%clk 0:00:06]} 1-0


[Site "https://www.chess.com"]

[Event "Titled Tuesday Blitz February 28 Early 2023"]
[White "Winkels, Marcel"]
[Black "Hoffmann, Asa"]
[WhiteFideId "1003887"]
[BlackFideId "2001470"]
[WhiteElo "1900"]
[BlackElo "2117"]
[Result "0-1"]
[Round "08"]
[TimeControl "180+2"]
[Date "2023.02.28"]
[WhiteClock "0:00:02"]
[BlackClock "0:00:54"]

1. Nf3 {[%clk 0:03:00]}  d6 {[%clk 0:02:54]} 2. c4 {[%clk 0:03:00]}  e5 {[%clk 0:02:51]} 3. g3 {[%clk 0:02:58]}  c6 {[%clk 0:02:51]} 4. Bg2 {[%clk 0:02:58]}  Be6 {[%clk 0:02:50]} 5. b3 {[%clk 0:02:56]}  Be7 {[%clk 0:02:49]} 6. O-O {[%clk 0:02:54]}  Nd7 {[%clk 0:02:48]} 7. d4 {[%clk 0:02:52]}  e4 {[%clk 0:02:47]} 8. Nfd2 {[%clk 0:02:48]}  d5 {[%clk 0:02:47]} 9. Nc3 {[%clk 0:02:44]}  f5 {[%clk 0:02:47]} 10. e3 {[%clk 0:02:36]}  Ngf6 {[%clk 0:02:46]} 11. Ne2 {[%clk 0:02:34]}  O-O {[%clk 0:02:44]} 12. Nf4 {[%clk 0:02:33]}  Bf7 {[%clk 0:02:44]} 13. h4 {[%clk 0:02:32]}  Bd6 {[%clk 0:02:40]} 14. c5 {[%clk 0:02:24]}  Bxf4 {[%clk 0:02:39]} 15. exf4 {[%clk 0:02:21]}  Bh5 {[%clk 0:02:35]} 16. Qc2 {[%clk 0:02:13]}  Be2 {[%clk 0:02:31]} 17. Re1 {[%clk 0:02:12]}  Bd3 {[%clk 0:02:31]} 18. Qd1 {[%clk 0:02:11]}  b6 {[%clk 0:02:29]} 19. b4 {[%clk 0:02:10]}  a5 {[%clk 0:02:29]} 20. Ba3 {[%clk 0:02:08]}  axb4 {[%clk 0:02:28]} 21. Bxb4 {[%clk 0:02:07]}  bxc5 {[%clk 0:02:28]} 22. dxc5 {[%clk 0:02:06]}  d4 {[%clk 0:02:24]} 23. Bf1 {[%clk 0:02:02]}  Bxf1 {[%clk 0:02:22]} 24. Kxf1 {[%clk 0:01:52]}  Nd5 {[%clk 0:02:22]} 25. a3 {[%clk 0:01:50]}  Nxf4 {[%clk 0:02:10]} 26. gxf4 {[%clk 0:01:48]}  Qxh4 {[%clk 0:02:10]} 27. Kg2 {[%clk 0:01:41]}  Rf6 {[%clk 0:02:08]} 28. Nf1 {[%clk 0:01:39]}  Qxf4 {[%clk 0:02:07]} 29. Qxd4 {[%clk 0:01:34]}  Ne5 {[%clk 0:01:59]} 30. Ng3 {[%clk 0:01:24]}  Ng4 {[%clk 0:01:40]} 31. Rh1 {[%clk 0:01:10]}  Qf3+ {[%clk 0:01:33]} 32. Kg1 {[%clk 0:01:09]}  e3 {[%clk 0:01:30]} 33. Be1 {[%clk 0:00:52]}  Re8 {[%clk 0:01:14]} 34. a4 {[%clk 0:00:24]}  Rg6 {[%clk 0:01:07]} 35. Rh3 {[%clk 0:00:14]}  f4 {[%clk 0:01:01]} 36. Nh5 {[%clk 0:00:02]}  Qxh3 {[%clk 0:00:54]} 0-1


[Site "https://www.chess.com"]

[Event "Titled Tuesday Blitz February 28 Early 2023"]
[White "Fabris, Alberto"]
[Black "Valle Maytin, Luis Enrique"]
[WhiteFideId "801348"]
[BlackFideId "3503666"]
[WhiteElo "2132"]
[BlackElo "2225"]
[Result "0-1"]
[Round "08"]
[TimeControl "180+2"]
[Date "2023.02.28"]
[WhiteClock "0:00:13"]
[BlackClock "0:00:07"]

1. e4 {[%clk 0:03:00]}  c6 {[%clk 0:02:59]} 2. d4 {[%clk 0:03:00]}  d5 {[%clk 0:02:59]} 3. e5 {[%clk 0:03:00]}  c5 {[%clk 0:03:00]} 4. dxc5 {[%clk 0:02:57]}  e6 {[%clk 0:02:59]} 5. Be3 {[%clk 0:02:56]}  Nd7 {[%clk 0:02:58]} 6. Nf3 {[%clk 0:02:55]}  Bxc5 {[%clk 0:02:57]} 7. Bxc5 {[%clk 0:02:53]}  Nxc5 {[%clk 0:02:58]} 8. Bd3 {[%clk 0:02:52]}  Ne7 {[%clk 0:02:57]} 9. O-O {[%clk 0:02:51]}  Ng6 {[%clk 0:02:53]} 10. Nc3 {[%clk 0:02:43]}  a6 {[%clk 0:02:50]} 11. Re1 {[%clk 0:02:42]}  Qc7 {[%clk 0:02:47]} 12. Qe2 {[%clk 0:02:33]}  O-O {[%clk 0:02:25]} 13. Qe3 {[%clk 0:02:29]}  Nxd3 {[%clk 0:02:24]} 14. cxd3 {[%clk 0:02:29]}  b5 {[%clk 0:02:25]} 15. d4 {[%clk 0:02:25]}  b4 {[%clk 0:02:24]} 16. Ne2 {[%clk 0:02:23]}  Bd7 {[%clk 0:02:24]} 17. Rec1 {[%clk 0:02:21]}  Qb6 {[%clk 0:02:22]} 18. Ne1 {[%clk 0:02:18]}  Rfc8 {[%clk 0:02:21]} 19. Nd3 {[%clk 0:02:18]}  Bb5 {[%clk 0:02:16]} 20. Nc5 {[%clk 0:02:15]}  a5 {[%clk 0:02:12]} 21. Nf4 {[%clk 0:02:12]}  Ne7 {[%clk 0:02:09]} 22. Nfd3 {[%clk 0:02:11]}  Nf5 {[%clk 0:02:09]} 23. Qf4 {[%clk 0:02:11]}  Ne7 {[%clk 0:02:04]} 24. Rc2 {[%clk 0:02:03]}  Nf5 {[%clk 0:01:57]} 25. Rac1 {[%clk 0:02:00]}  Bxd3 {[%clk 0:01:50]} 26. Nxd3 {[%clk 0:01:59]}  Rxc2 {[%clk 0:01:49]} 27. Rxc2 {[%clk 0:01:59]}  Qxd4 {[%clk 0:01:50]} 28. Qxd4 {[%clk 0:01:58]}  Nxd4 {[%clk 0:01:51]} 29. Rc7 {[%clk 0:01:49]}  h6 {[%clk 0:01:37]} 30. f4 {[%clk 0:01:48]}  h5 {[%clk 0:01:33]} 31. Kf2 {[%clk 0:01:48]}  Kf8 {[%clk 0:01:33]} 32. g3 {[%clk 0:01:46]}  Nf5 {[%clk 0:01:19]} 33. Nc5 {[%clk 0:01:36]}  Ne7 {[%clk 0:01:10]} 34. Ke3 {[%clk 0:01:31]}  Ke8 {[%clk 0:01:02]} 35. Kd4 {[%clk 0:01:23]}  Nf5+ {[%clk 0:01:00]} 36. Kd3 {[%clk 0:01:22]}  Ne7 {[%clk 0:00:53]} 37. Nb7 {[%clk 0:01:11]}  Nf5 {[%clk 0:00:50]} 38. Rc5 {[%clk 0:01:03]}  a4 {[%clk 0:00:19]} 39. Rb5 {[%clk 0:01:01]}  a3 {[%clk 0:00:19]} 40. b3 {[%clk 0:01:00]}  Kd7 {[%clk 0:00:18]} 41. Rxb4 {[%clk 0:00:57]}  Kc6 {[%clk 0:00:18]} 42. Nd6 {[%clk 0:00:51]}  Nxd6 {[%clk 0:00:15]} 43. exd6 {[%clk 0:00:52]}  Kxd6 {[%clk 0:00:16]} 44. Rb7 {[%clk 0:00:51]}  f6 {[%clk 0:00:13]} 45. Rxg7 {[%clk 0:00:51]}  e5 {[%clk 0:00:13]} 46. fxe5+ {[%clk 0:00:50]}  fxe5 {[%clk 0:00:14]} 47. Rg6+ {[%clk 0:00:50]}  Kc5 {[%clk 0:00:15]} 48. Rg5 {[%clk 0:00:49]}  e4+ {[%clk 0:00:14]} 49. Ke3 {[%clk 0:00:50]}  Rf8 {[%clk 0:00:14]} 50. Rxh5 {[%clk 0:00:47]}  Rf3+ {[%clk 0:00:14]} 51. Ke2 {[%clk 0:00:48]}  Kd4 {[%clk 0:00:14]} 52. g4 {[%clk 0:00:41]}  Rc3 {[%clk 0:00:14]} 53. Kf2 {[%clk 0:00:37]}  Rc2+ {[%clk 0:00:14]} 54. Kg3 {[%clk 0:00:38]}  Rxa2 {[%clk 0:00:13]} 55. Rh8 {[%clk 0:00:35]}  Ra1 {[%clk 0:00:13]} 56. Ra8 {[%clk 0:00:34]}  Rg1+ {[%clk 0:00:04]} 57. Kf2 {[%clk 0:00:33]}  Rxg4 {[%clk 0:00:04]} 58. Rxa3 {[%clk 0:00:32]}  Rf4+ {[%clk 0:00:02]} 59. Ke2 {[%clk 0:00:32]}  Rf3 {[%clk 0:00:03]} 60. Ra4+ {[%clk 0:00:30]}  Kc3 {[%clk 0:00:03]} 61. Ra5 {[%clk 0:00:29]}  Rd3 {[%clk 0:00:03]} 62. Rb5 {[%clk 0:00:28]}  d4 {[%clk 0:00:03]} 63. h4 {[%clk 0:00:24]}  Rd2+ {[%clk 0:00:03]} 64. Ke1 {[%clk 0:00:22]}  e3 {[%clk 0:00:04]} 65. b4 {[%clk 0:00:17]}  Rh2 {[%clk 0:00:04]} 66. Rc5+ {[%clk 0:00:16]}  Kd3 {[%clk 0:00:04]} 67. Kf1 {[%clk 0:00:14]}  e2+ {[%clk 0:00:04]} 68. Kg1 {[%clk 0:00:14]}  Rxh4 {[%clk 0:00:04]} 69. Re5 {[%clk 0:00:13]}  Re4 {[%clk 0:00:03]} 70. Rxe4 {[%clk 0:00:11]}  Kxe4 {[%clk 0:00:04]} 71. Kf2 {[%clk 0:00:12]}  Kd3 {[%clk 0:00:04]} 72. Ke1 {[%clk 0:00:11]}  Ke3 {[%clk 0:00:05]} 73. b5 {[%clk 0:00:12]}  d3 {[%clk 0:00:06]} 74. b6 {[%clk 0:00:13]}  d2# {[%clk 0:00:07]} 0-1


[Site "https://www.chess.com"]

[Event "Titled Tuesday Blitz February 28 Early 2023"]
[White "Jenkins, Drake"]
[Black "Kiseleva, Arina"]
[WhiteFideId "2022397"]
[BlackFideId "4164989"]
[WhiteElo "2353"]
[BlackElo "1756"]
[Result "0-1"]
[Round "08"]
[TimeControl "180+2"]
[Date "2023.02.28"]
[WhiteClock "0:00:02"]
[BlackClock "0:00:06"]

1. Nf3 {[%clk 0:03:00]}  d5 {[%clk 0:02:59]} 2. c4 {[%clk 0:02:59]}  c6 {[%clk 0:02:58]} 3. g3 {[%clk 0:02:59]}  Nf6 {[%clk 0:02:58]} 4. Bg2 {[%clk 0:02:59]}  dxc4 {[%clk 0:02:52]} 5. O-O {[%clk 0:02:58]}  Bf5 {[%clk 0:02:45]} 6. a4 {[%clk 0:02:56]}  e6 {[%clk 0:02:44]} 7. Na3 {[%clk 0:02:56]}  Bxa3 {[%clk 0:02:39]} 8. bxa3 {[%clk 0:02:56]}  Nbd7 {[%clk 0:02:28]} 9. Bb2 {[%clk 0:02:51]}  Rc8 {[%clk 0:02:25]} 10. Rc1 {[%clk 0:02:45]}  b5 {[%clk 0:02:17]} 11. d3 {[%clk 0:02:30]}  cxd3 {[%clk 0:02:03]} 12. exd3 {[%clk 0:02:31]}  Nb6 {[%clk 0:02:03]} 13. axb5 {[%clk 0:02:20]}  Bxd3 {[%clk 0:01:45]} 14. Bxf6 {[%clk 0:01:35]}  gxf6 {[%clk 0:01:42]} 15. Re1 {[%clk 0:01:27]}  Bxb5 {[%clk 0:01:41]} 16. Qc2 {[%clk 0:01:10]}  O-O {[%clk 0:01:30]} 17. Red1 {[%clk 0:01:07]}  Qe7 {[%clk 0:01:30]} 18. Qd2 {[%clk 0:01:05]}  Rfd8 {[%clk 0:01:28]} 19. Qh6 {[%clk 0:01:04]}  Rxd1+ {[%clk 0:01:16]} 20. Rxd1 {[%clk 0:01:04]}  Rd8 {[%clk 0:01:16]} 21. Re1 {[%clk 0:00:59]}  Nc4 {[%clk 0:01:07]} 22. Nh4 {[%clk 0:00:58]}  Ne5 {[%clk 0:01:05]} 23. h3 {[%clk 0:00:37]}  Bd3 {[%clk 0:00:46]} 24. Kh2 {[%clk 0:00:34]}  Ng6 {[%clk 0:00:42]} 25. Bxc6 {[%clk 0:00:26]}  Nxh4 {[%clk 0:00:38]} 26. Qxh4 {[%clk 0:00:27]}  Bg6 {[%clk 0:00:38]} 27. a4 {[%clk 0:00:15]}  Rd2 {[%clk 0:00:36]} 28. Qf4 {[%clk 0:00:13]}  Qd6 {[%clk 0:00:28]} 29. Qxd6 {[%clk 0:00:07]}  Rxd6 {[%clk 0:00:29]} 30. Bb5 {[%clk 0:00:06]}  a6 {[%clk 0:00:28]} 31. Be2 {[%clk 0:00:05]}  Rd2 {[%clk 0:00:28]} 32. Kg1 {[%clk 0:00:05]}  a5 {[%clk 0:00:26]} 33. Bb5 {[%clk 0:00:04]}  Ra2 {[%clk 0:00:23]} 34. h4 {[%clk 0:00:04]}  Bc2 {[%clk 0:00:23]} 35. Re2 {[%clk 0:00:03]}  Ra1+ {[%clk 0:00:15]} 36. Kg2 {[%clk 0:00:02]}  Bxa4 {[%clk 0:00:16]} 37. Ba6 {[%clk 0:00:02]}  Bb3 {[%clk 0:00:15]} 38. h5 {[%clk 0:00:02]}  h6 {[%clk 0:00:15]} 39. Re3 {[%clk 0:00:01]}  a4 {[%clk 0:00:15]} 40. Rc3 {[%clk 0:00:01]}  Kg7 {[%clk 0:00:12]} 41. Rc8 {[%clk 0:00:02]}  a3 {[%clk 0:00:11]} 42. Bb7 {[%clk 0:00:02]}  Bd5+ {[%clk 0:00:10]} 43. Bxd5 {[%clk 0:00:02]}  exd5 {[%clk 0:00:11]} 44. Ra8 {[%clk 0:00:02]}  a2 {[%clk 0:00:11]} 45. Kf3 {[%clk 0:00:03]}  d4 {[%clk 0:00:10]} 46. Ke2 {[%clk 0:00:03]}  d3+ {[%clk 0:00:08]} 47. Kd2 {[%clk 0:00:03]}  Rf1 {[%clk 0:00:08]} 48. Kxd3 {[%clk 0:00:02]}  a1=Q {[%clk 0:00:06]} 0-1


[Site "https://www.chess.com"]

[Event "Titled Tuesday Blitz February 28 Early 2023"]
[White "Ansh M Shah"]
[Black "Bongo Akanga Ndjila, Barthelemy"]
[WhiteFideId "25033379"]
[BlackFideId "10609431"]
[WhiteElo "2084"]
[BlackElo "1768"]
[Result "0-1"]
[Round "08"]
[TimeControl "180+2"]
[Date "2023.02.28"]
[WhiteClock "0:00:04"]
[BlackClock "0:00:51"]

1. d4 {[%clk 0:02:56]}  d5 {[%clk 0:02:59]} 2. c4 {[%clk 0:02:56]}  e6 {[%clk 0:02:59]} 3. g3 {[%clk 0:02:55]}  dxc4 {[%clk 0:02:56]} 4. Bg2 {[%clk 0:02:54]}  c5 {[%clk 0:02:53]} 5. Nf3 {[%clk 0:02:54]}  Nc6 {[%clk 0:02:45]} 6. Qa4 {[%clk 0:02:08]}  cxd4 {[%clk 0:02:39]} 7. Nxd4 {[%clk 0:02:09]}  Bb4+ {[%clk 0:02:02]} 8. Nc3 {[%clk 0:01:46]}  Bxc3+ {[%clk 0:01:51]} 9. bxc3 {[%clk 0:01:47]}  Ne7 {[%clk 0:01:50]} 10. Nxc6 {[%clk 0:01:31]}  Nxc6 {[%clk 0:01:47]} 11. Ba3 {[%clk 0:01:30]}  Bd7 {[%clk 0:01:45]} 12. Qxc4 {[%clk 0:01:21]}  Qa5 {[%clk 0:01:39]} 13. Qc5 {[%clk 0:00:59]}  Qxc5 {[%clk 0:01:32]} 14. Bxc5 {[%clk 0:01:00]}  O-O-O {[%clk 0:01:31]} 15. O-O {[%clk 0:00:54]}  b6 {[%clk 0:01:31]} 16. Ba3 {[%clk 0:00:49]}  Na5 {[%clk 0:01:26]} 17. Rfd1 {[%clk 0:00:30]}  Bc6 {[%clk 0:01:26]} 18. Bxc6 {[%clk 0:00:24]}  Nxc6 {[%clk 0:01:27]} 19. c4 {[%clk 0:00:25]}  Rxd1+ {[%clk 0:01:24]} 20. Rxd1 {[%clk 0:00:24]}  Rd8 {[%clk 0:01:25]} 21. Rxd8+ {[%clk 0:00:24]}  Kxd8 {[%clk 0:01:26]} 22. c5 {[%clk 0:00:25]}  Na5 {[%clk 0:01:21]} 23. cxb6 {[%clk 0:00:24]}  axb6 {[%clk 0:01:21]} 24. Bb2 {[%clk 0:00:21]}  g6 {[%clk 0:01:19]} 25. Kf1 {[%clk 0:00:20]}  Kd7 {[%clk 0:01:20]} 26. Ke1 {[%clk 0:00:19]}  Nc4 {[%clk 0:01:20]} 27. Bd4 {[%clk 0:00:19]}  Kc6 {[%clk 0:01:19]} 28. Kd1 {[%clk 0:00:19]}  e5 {[%clk 0:01:20]} 29. Bc3 {[%clk 0:00:19]}  Kd5 {[%clk 0:01:19]} 30. Kc2 {[%clk 0:00:20]}  Na3+ {[%clk 0:01:17]} 31. Kb3 {[%clk 0:00:20]}  Nb5 {[%clk 0:01:18]} 32. a4 {[%clk 0:00:18]}  Nxc3 {[%clk 0:01:17]} 33. Kxc3 {[%clk 0:00:19]}  Kc5 {[%clk 0:01:17]} 34. Kb3 {[%clk 0:00:19]}  f5 {[%clk 0:01:17]} 35. Kc3 {[%clk 0:00:18]}  g5 {[%clk 0:01:17]} 36. h3 {[%clk 0:00:18]}  h5 {[%clk 0:01:16]} 37. Kb3 {[%clk 0:00:17]}  g4 {[%clk 0:01:16]} 38. hxg4 {[%clk 0:00:16]}  hxg4 {[%clk 0:01:11]} 39. Kc3 {[%clk 0:00:15]}  f4 {[%clk 0:01:10]} 40. Kb3 {[%clk 0:00:13]}  Kd4 {[%clk 0:01:02]} 41. Kb4 {[%clk 0:00:13]}  fxg3 {[%clk 0:01:02]} 42. fxg3 {[%clk 0:00:12]}  Ke3 {[%clk 0:01:02]} 43. Kb5 {[%clk 0:00:13]}  Kxe2 {[%clk 0:01:03]} 44. Kxb6 {[%clk 0:00:13]}  e4 {[%clk 0:01:03]} 45. a5 {[%clk 0:00:14]}  e3 {[%clk 0:01:04]} 46. a6 {[%clk 0:00:15]}  Kf1 {[%clk 0:01:05]} 47. a7 {[%clk 0:00:16]}  e2 {[%clk 0:01:06]} 48. a8=Q {[%clk 0:00:16]}  e1=Q {[%clk 0:01:06]} 49. Qh1+ {[%clk 0:00:15]}  Kf2 {[%clk 0:01:06]} 50. Qh2+ {[%clk 0:00:16]}  Kf3 {[%clk 0:01:05]} 51. Qh6 {[%clk 0:00:13]}  Qxg3 {[%clk 0:01:05]} 52. Qc6+ {[%clk 0:00:12]}  Kf2 {[%clk 0:01:04]} 53. Qc2+ {[%clk 0:00:13]}  Kg1 {[%clk 0:01:04]} 54. Qd1+ {[%clk 0:00:12]}  Kg2 {[%clk 0:01:02]} 55. Qd5+ {[%clk 0:00:11]}  Qf3 {[%clk 0:01:02]} 56. Qg5 {[%clk 0:00:08]}  g3 {[%clk 0:01:02]} 57. Kb5 {[%clk 0:00:07]}  Qf2 {[%clk 0:01:01]} 58. Qd5+ {[%clk 0:00:06]}  Kg1 {[%clk 0:01:02]} 59. Ka4 {[%clk 0:00:04]}  g2 {[%clk 0:01:01]} 60. Qd1+ {[%clk 0:00:04]}  Qf1 {[%clk 0:01:01]} 61. Qd4+ {[%clk 0:00:05]}  Kh2 {[%clk 0:00:58]} 62. Qh4+ {[%clk 0:00:05]}  Kg1 {[%clk 0:00:57]} 63. Qd4+ {[%clk 0:00:05]}  Qf2 {[%clk 0:00:57]} 64. Qd1+ {[%clk 0:00:06]}  Kh2 {[%clk 0:00:57]} 65. Qh5+ {[%clk 0:00:05]}  Kg3 {[%clk 0:00:56]} 66. Qg5+ {[%clk 0:00:05]}  Kf3 {[%clk 0:00:57]} 67. Qf5+ {[%clk 0:00:06]}  Ke2 {[%clk 0:00:57]} 68. Qc2+ {[%clk 0:00:05]}  Kf1 {[%clk 0:00:56]} 69. Qd1+ {[%clk 0:00:04]}  Qe1 {[%clk 0:00:56]} 70. Qd3+ {[%clk 0:00:03]}  Qe2 {[%clk 0:00:57]} 71. Qf5+ {[%clk 0:00:03]}  Qf2 {[%clk 0:00:57]} 72. Qd3+ {[%clk 0:00:02]}  Qe2 {[%clk 0:00:57]} 73. Qf5+ {[%clk 0:00:02]}  Ke1 {[%clk 0:00:56]} 74. Qb1+ {[%clk 0:00:02]}  Kf2 {[%clk 0:00:57]} 75. Qf5+ {[%clk 0:00:02]}  Ke1 {[%clk 0:00:57]} 76. Qb1+ {[%clk 0:00:03]}  Kd2 {[%clk 0:00:57]} 77. Qb2+ {[%clk 0:00:03]}  Kd3 {[%clk 0:00:56]} 78. Qb3+ {[%clk 0:00:03]}  Kd2 {[%clk 0:00:54]} 79. Qb4+ {[%clk 0:00:03]}  Ke3 {[%clk 0:00:55]} 80. Qc5+ {[%clk 0:00:03]}  Kf3 {[%clk 0:00:55]} 81. Qf5+ {[%clk 0:00:03]}  Ke3 {[%clk 0:00:53]} 82. Qe5+ {[%clk 0:00:04]}  Kd2 {[%clk 0:00:52]} 83. Qb2+ {[%clk 0:00:04]}  Ke1 {[%clk 0:00:52]} 84. Qc1+ {[%clk 0:00:04]}  Qd1+ {[%clk 0:00:51]} 85. Qxd1+ {[%clk 0:00:04]}  Kxd1 {[%clk 0:00:51]} 0-1


[Site "https://www.chess.com"]

[Event "Titled Tuesday Blitz February 28 Early 2023"]
[White "Flis, Pawel"]
[Black "Matveeva, Olga"]
[WhiteFideId "1112864"]
[BlackFideId "24107018"]
[WhiteElo "1822"]
[BlackElo "2056"]
[Result "0-1"]
[Round "08"]
[TimeControl "180+2"]
[Date "2023.02.28"]
[WhiteClock "0:00:01"]
[BlackClock "0:00:04"]

1. e4 {[%clk 0:03:00]}  e6 {[%clk 0:03:00]} 2. d4 {[%clk 0:02:59]}  d5 {[%clk 0:03:01]} 3. Bd3 {[%clk 0:03:00]}  c5 {[%clk 0:02:57]} 4. exd5 {[%clk 0:02:56]}  exd5 {[%clk 0:02:45]} 5. Nf3 {[%clk 0:02:54]}  Nf6 {[%clk 0:02:45]} 6. O-O {[%clk 0:02:54]}  c4 {[%clk 0:02:45]} 7. Re1+ {[%clk 0:02:53]}  Be7 {[%clk 0:02:45]} 8. Bf1 {[%clk 0:02:52]}  O-O {[%clk 0:02:45]} 9. b3 {[%clk 0:02:51]}  cxb3 {[%clk 0:02:45]} 10. axb3 {[%clk 0:02:51]}  Nc6 {[%clk 0:02:45]} 11. h3 {[%clk 0:02:46]}  b6 {[%clk 0:02:43]} 12. c4 {[%clk 0:02:41]}  Bb7 {[%clk 0:02:39]} 13. Nc3 {[%clk 0:02:40]}  dxc4 {[%clk 0:02:33]} 14. bxc4 {[%clk 0:02:39]}  Rc8 {[%clk 0:02:31]} 15. Be3 {[%clk 0:02:14]}  Re8 {[%clk 0:02:28]} 16. d5 {[%clk 0:02:05]}  Na5 {[%clk 0:02:26]} 17. Qa4 {[%clk 0:01:49]}  Bc5 {[%clk 0:01:52]} 18. Bg5 {[%clk 0:01:38]}  Qd6 {[%clk 0:01:23]} 19. Nb5 {[%clk 0:01:33]}  Qg3 {[%clk 0:01:08]} 20. Bh4 {[%clk 0:00:50]}  Qf4 {[%clk 0:00:47]} 21. Nxa7 {[%clk 0:00:20]}  Ra8 {[%clk 0:00:46]} 22. Bxf6 {[%clk 0:00:12]}  Rxe1 {[%clk 0:00:42]} 23. Rxe1 {[%clk 0:00:12]}  gxf6 {[%clk 0:00:30]} 24. Re8+ {[%clk 0:00:11]}  Rxe8 {[%clk 0:00:28]} 25. Qxe8+ {[%clk 0:00:12]}  Kg7 {[%clk 0:00:29]} 26. d6 {[%clk 0:00:12]}  Bxd6 {[%clk 0:00:21]} 27. Nb5 {[%clk 0:00:11]}  Bxf3 {[%clk 0:00:19]} 28. Nxd6 {[%clk 0:00:11]}  Qxd6 {[%clk 0:00:17]} 29. gxf3 {[%clk 0:00:09]}  Qc5 {[%clk 0:00:16]} 30. Qe4 {[%clk 0:00:08]}  Nb3 {[%clk 0:00:15]} 31. Qg4+ {[%clk 0:00:07]}  Kf8 {[%clk 0:00:15]} 32. Qh4 {[%clk 0:00:04]}  Ke7 {[%clk 0:00:14]} 33. Qxh7 {[%clk 0:00:04]}  Nd4 {[%clk 0:00:14]} 34. Qe4+ {[%clk 0:00:04]}  Kf8 {[%clk 0:00:14]} 35. h4 {[%clk 0:00:04]}  f5 {[%clk 0:00:10]} 36. Qa8+ {[%clk 0:00:02]}  Kg7 {[%clk 0:00:10]} 37. Qd5 {[%clk 0:00:02]}  Kf6 {[%clk 0:00:04]} 38. Qxc5 {[%clk 0:00:01]}  bxc5 {[%clk 0:00:05]} 39. Bd3 {[%clk 0:00:01]}  Nxf3+ {[%clk 0:00:04]} 0-1


[Site "https://www.chess.com"]